[Event "Norwegian Team Championship 2019"]
[Site "Drammen"]
[Date "2019.06.02"]
[Round "5.2"]
[White "Stokke, Kjetil"]
[Black "Hauge, Lars Oskar"]
[Result "0-1"]
[ECO "A26"]
[WhiteElo "2343"]
[BlackElo "2470"]
[Annotator "ChessBase"]
[PlyCount "174"]
[EventDate "2019.05.30"]
[EventType "swiss"]
[EventCountry "NOR"]
[SourceTitle "playchess.com"]
[Source "ChessBase"]
[SourceQuality "1"]
[TimeControl "40/5400:1800"]

1. c4 {[%emt 0:03:15]} f5 {[%emt 0:01:32]} 2. g3 {[%emt 0:00:59]} Nf6 {[%emt 0:00:57]} 3. Bg2 {[%emt 0:00:07]} d6 {[%emt 0:01:26]} 4. Nc3 {[%emt 0:01:22]} g6 {[%emt 0:00:50]} 5. d3 {[%emt 0:00:04]} Bg7 {[%emt 0:01:10]} 6. e4 {[%emt 0:00:05]} Nc6 {[%emt 0:00:12]} 7. Nge2 {[%emt 0:00:06]} O-O {[%emt 0:00:52]} 8. O-O {[%emt 0:00:25]} e5 {[%emt 0:00:12]} 9. Nd5 {[%emt 0:00:02]} fxe4 {[%emt 0:05:01]} 10. dxe4 {[%emt 0:00:50]} Be6 {[%emt 0:00:11]} 11. h3 {[%emt 0:03:15]} Qd7 {[%emt 0:07:02]} 12. Kh2 {[%emt 0:00:09]} Rae8 {[%emt 0:03:40]} 13. Be3 {[%emt 0:01:41]} Nd8 {[%emt 0:03:33]} 14. Qd2 {[%emt 0:05:09]} Nh5 {[%emt 0:03:01]} 15. Rad1 {[%emt 0:05:03]} b6 {[%emt 0:03:59]} 16. b3 {[%emt 0:10:00]} Nf7 {[%emt 0:02:53]} 17. Rde1 {[%emt 0:05:18]} Qd8 {[%emt 0:06:40]} 18. Rd1 {[%emt 0:01:03]} Bd7 {[%emt 0:05:17]} 19. b4 {[%emt 0:05:26]} c6 {[%emt 0:03:43]} 20. Ndc3 {[%emt 0:00:13]} Be6 {[%emt 0:00:04]} 21. Qd3 {[%emt 0:07:32]} g5 {[%emt 0:05:08]} 22. b5 {[%emt 0:01:41]} cxb5 {[%emt 0:02:16]} 23. Nxb5 {[%emt 0:03:42]} Qe7 {[%emt 0:01:35]} 24. Nxd6 {[%emt 0:02:06]} Rd8 {[%emt 0:08:51]} 25. c5 {[%emt 0:00:07]} Nf4 {[%emt 0:00:04]} 26. gxf4 {[%emt 0:06:35]} gxf4 {[%emt 0:00:08]} 27. Nxf4 {[%emt 0:04:37]} exf4 {[%emt 0:00:08]} 28. Bxf4 {[%emt 0:00:08]} bxc5 {[%emt 0:01:13]} 29. Qg3 {[%emt 0:00:42]} Kh8 {[%emt 0:01:11]} 30. Nxf7+ {[%emt 0:01:45]} Qxf7 {[%emt 0:00:15]} 31. Be5 {[%emt 0:01:08]} Bxa2 {[%emt 0:01:15]} 32. Rxd8 {[%emt 0:08:37]} Rxd8 {[%emt 0:00:15]} 33. Ra1 {[%emt 0:00:33]} Be6 {[%emt 0:06:33]} 34. Bxg7+ {[%emt 0:00:50]} Qxg7 {[%emt 0:00:05]} 35. Qxg7+ {[%emt 0:00:05]} Kxg7 {[%emt 0:00:03]} 36. Rxa7+ {[%emt 0:00:08]} Kf6 {[%emt 0:01:34]} 37. f4 {[%emt 0:03:31]} c4 {[%emt 0:02:08]} 38. Ra6 {[%emt 0:00:59]} Ke7 {[%emt 0:01:26]} 39. f5 {[%emt 0:00:16]} Bd7 {[%emt 0:00:17]} 40. Kg3 {[%emt 0:00:20]} c3 {[%emt 0:00:38]} 41. Ra2 {[%emt 0:11:46]} Rc8 {[%emt 0:05:30]} 42. Rc2 {[%emt 0:00:39]} Ba4 {[%emt 0:01:22]} 43. Rc1 {[%emt 0:00:04]} c2 {[%emt 0:00:15]} 44. e5 {[%emt 0:01:15]} Rc4 {[%emt 0:02:55]} 45. f6+ {[%emt 0:05:00]} Ke6 {[%emt 0:00:09]} 46. f7 {[%emt 0:00:07]} Rc3+ {[%emt 0:01:12]} 47. Kf4 {[%emt 0:00:51]} Kxf7 {[%emt 0:00:14]} 48. Be4 {[%emt 0:01:09]} h6 {[%emt 0:00:20]} 49. Bf5 {[%emt 0:00:42]} Ke7 {[%emt 0:01:15]} 50. h4 {[%emt 0:01:28]} Rc4+ {[%emt 0:01:32]} 51. Ke3 {[%emt 0:00:02]} h5 {[%emt 0:00:38]} 52. Bd3 {[%emt 0:00:57]} Rxh4 {[%emt 0:00:55]} 53. Bxc2 {[%emt 0:00:13]} Rc4 {[%emt 0:00:16]} 54. Rh1 {[%emt 0:00:03]} Bxc2 {[%emt 0:00:19]} 55. Rxh5 {[%emt 0:00:01]} Ke6 {[%emt 0:00:17]} 56. Rg5 {[%emt 0:00:01]} Bb1 {[%emt 0:00:37]} 57. Rh5 {[%emt 0:00:07]} Bf5 {[%emt 0:00:10]} 58. Rh8 {[%emt 0:00:01]} Rb4 {[%emt 0:00:38]} 59. Re8+ {[%emt 0:00:02]} Kd5 {[%emt 0:00:14]} 60. Rd8+ {[%emt 0:00:06]} Kxe5 {[%emt 0:00:12]} 61. Re8+ {[%emt 0:00:05]} Be6 {[%emt 0:00:48]} 62. Kd3 {[%emt 0:00:02]} Rb3+ {[%emt 0:00:22]} 63. Kc2 {[%emt 0:00:01]} Rg3 {[%emt 0:00:19]} 64. Re7 {[%emt 0:00:03]} Kd5 {[%emt 0:00:10]} 65. Re8 {[%emt 0:00:09]} Bf5+ {[%emt 0:00:21]} 66. Kd2 {[%emt 0:00:07]} Be4 {[%emt 0:00:01]} 67. Rd8+ {[%emt 0:00:19]} Ke5 {[%emt 0:00:14]} 68. Ke2 {[%emt 0:00:02]} Bd5 {[%emt 0:00:16]} 69. Kf2 {[%emt 0:00:05]} Rb3 {[%emt 0:00:40]} 70. Rf8 {[%emt 0:00:01]} Kd4 {[%emt 0:00:15]} 71. Re8 {[%emt 0:00:01]} Rf3+ {[%emt 0:00:15]} 72. Ke2 {[%emt 0:00:01]} Rg3 {[%emt 0:00:07]} 73. Rf8 {[%emt 0:00:21]} Bc6 {[%emt 0:01:05]} 74. Rd8+ {[%emt 0:00:09]} Ke4 {[%emt 0:00:17]} 75. Kd2 {[%emt 0:00:01]} Bd5 {[%emt 0:00:22]} 76. Rh8 {[%emt 0:00:08]} Kd4 {[%emt 0:00:09]} 77. Re8 {[%emt 0:00:03]} Rg7 {[%emt 0:01:03]} 78. Re1 {[%emt 0:00:04]} Bc4 {[%emt 0:00:38]} 79. Re8 {[%emt 0:00:19]} Rg2+ {[%emt 0:00:17]} 80. Ke1 {[%emt 0:00:02]} Bb5 {[%emt 0:00:07]} 81. Re6 {[%emt 0:00:10]} Bd3 {[%emt 0:01:14]} 82. Re8 {[%emt 0:00:07]} Rb2 {[%emt 0:00:07]} 83. Re7 {[%emt 0:00:10]} Be4 {[%emt 0:00:28]} 84. Kf1 {[%emt 0:00:01]} Ke3 {[%emt 0:00:17]} 85. Kg1 {[%emt 0:00:50]} Rg2+ {[%emt 0:00:09]} 86. Kf1 {[%emt 0:00:09]} Rh2 {[%emt 0:00:28]} 87. Rg7 {[%emt 0:00:01]} Rb2 {[%emt 0:00:01]} 0-1

[Event "Norwegian Team Championship 2019"]
[Site "Drammen"]
[Date "2019.06.02"]
[Round "5.3"]
[White "Getz, Nicolai"]
[Black "Gullaksen, Eirik"]
[Result "1-0"]
[ECO "E62"]
[WhiteElo "2380"]
[BlackElo "2327"]
[Annotator "ChessBase"]
[PlyCount "99"]
[EventDate "2019.05.30"]
[EventType "swiss"]
[EventCountry "NOR"]
[SourceTitle "playchess.com"]
[Source "ChessBase"]
[SourceQuality "1"]
[TimeControl "40/5400:1800"]

1. Nf3 {[%emt 0:00:04]} Nf6 {[%emt 0:00:38]} 2. g3 {[%emt 0:00:09]} g6 {[%emt 0:00:06]} 3. Bg2 {[%emt 0:00:05]} Bg7 {[%emt 0:00:09]} 4. O-O {[%emt 0:00:42]} O-O {[%emt 0:00:10]} 5. c4 {[%emt 0:01:23]} d6 {[%emt 0:00:24]} 6. d4 {[%emt 0:02:09]} Nc6 {[%emt 0:00:59]} 7. Nc3 {[%emt 0:00:23]} e5 {[%emt 0:01:08]} 8. d5 {[%emt 0:05:37]} Nb8 {[%emt 0:00:26]} 9. Qc2 {[%emt 0:03:56]} a5 {[%emt 0:00:24]} 10. Bd2 {[%emt 0:07:06]} Na6 {[%emt 0:01:43]} 11. a3 {[%emt 0:05:05]} Nd7 {[%emt 0:13:18]} 12. Nb5 {[%emt 0:04:55]} b6 {[%emt 0:07:40]} 13. b4 {[%emt 0:01:39]} axb4 {[%emt 0:00:09]} 14. axb4 {[%emt 0:00:05]} Bb7 {[%emt 0:08:00]} 15. Ra3 {[%emt 0:04:54]} h6 {[%emt 0:06:42]} 16. e4 {[%emt 0:03:06]} Qe7 {[%emt 0:08:30]} 17. Rfa1 {[%emt 0:04:45]} Rfc8 {[%emt 0:07:56]} 18. Qd3 {[%emt 0:03:15]} Bf8 {[%emt 0:03:38]} 19. Qe2 {[%emt 0:02:27]} Kh7 {[%emt 0:01:12]} 20. h4 {[%emt 0:03:32]} Nf6 {[%emt 0:02:53]} 21. Bh3 {[%emt 0:00:47]} Rd8 {[%emt 0:00:26]} 22. Nh2 {[%emt 0:01:53]} Bg7 {[%emt 0:00:52]} 23. R1a2 {[%emt 0:02:20]} h5 {[%emt 0:05:58]} 24. Nf3 {[%emt 0:01:08]} Bh6 {[%emt 0:00:39]} 25. Ng5+ {[%emt 0:04:05]} Kg7 {[%emt 0:00:02]} 26. Qe1 {[%emt 0:03:02]} Nh7 {[%emt 0:03:58]} 27. Qc1 {[%emt 0:00:48]} Bxg5 {[%emt 0:00:10]} 28. hxg5 {[%emt 0:00:05]} Rf8 {[%emt 0:00:17]} 29. Bg2 {[%emt 0:03:20]} Qd7 {[%emt 0:04:20]} 30. Kh2 {[%emt 0:04:44]} Kh8 {[%emt 0:00:24]} 31. Bh3 {[%emt 0:00:40]} Qe7 {[%emt 0:00:06]} 32. Kg2 {[%emt 0:03:28]} f6 {[%emt 0:02:01]} 33. gxf6 {[%emt 0:00:07]} Qxf6 {[%emt 0:00:03]} 34. f4 {[%emt 0:01:40]} c6 {[%emt 0:01:00]} 35. dxc6 {[%emt 0:01:28]} Bxc6 {[%emt 0:00:06]} 36. Rxa6 {[%emt 0:01:58]} Rxa6 {[%emt 0:00:07]} 37. Rxa6 {[%emt 0:00:04]} Ng5 {[%emt 0:00:21]} 38. Nc3 {[%emt 0:01:47]} Nxh3 {[%emt 0:01:28]} 39. Kxh3 {[%emt 0:00:01]} Qe6+ {[%emt 0:00:33]} 40. Kh2 {[%emt 0:00:30]} Qxc4 {[%emt 0:00:17]} 41. Rxb6 {[%emt 0:03:43]} Bxe4 {[%emt 0:01:13]} 42. Qe1 {[%emt 0:03:03]} Qd4 {[%emt 0:11:13]} 43. Qe3 {[%emt 0:03:49]} d5 {[%emt 0:00:29]} 44. Nxe4 {[%emt 0:01:29]} dxe4 {[%emt 0:00:09]} 45. Qxd4 {[%emt 0:01:10]} exd4 {[%emt 0:00:09]} 46. Rd6 {[%emt 0:00:21]} e3 {[%emt 0:00:11]} 47. Be1 {[%emt 0:01:15]} Rc8 {[%emt 0:00:13]} 48. Kg2 {[%emt 0:00:29]} Rc1 {[%emt 0:00:56]} 49. Kf1 {[%emt 0:00:12]} Rd1 {[%emt 0:00:46]} 50. Rxd4 {[%emt 0:00:24]} 1-0

[Event "Norwegian Team Championship 2019"]
[Site "Drammen"]
[Date "2019.06.02"]
[Round "5.4"]
[White "Gabrielsen, Stig"]
[Black "Ogaard, Leif"]
[Result "1-0"]
[ECO "B48"]
[WhiteElo "2279"]
[BlackElo "2385"]
[Annotator "ChessBase"]
[PlyCount "103"]
[EventDate "2019.05.30"]
[EventType "swiss"]
[EventCountry "NOR"]
[SourceTitle "playchess.com"]
[Source "ChessBase"]
[SourceQuality "1"]
[TimeControl "40/5400:1800"]

1. e4 {[%emt 0:00:04]} c5 {[%emt 0:00:08]} 2. Nf3 {[%emt 0:00:07]} e6 {[%emt 0:00:07]} 3. d4 {[%emt 0:00:04]} cxd4 {[%emt 0:00:09]} 4. Nxd4 {[%emt 0:00:05]} Nc6 {[%emt 0:00:12]} 5. Nc3 {[%emt 0:00:09]} Qc7 {[%emt 0:00:25]} 6. Be3 {[%emt 0:00:10]} a6 {[%emt 0:00:21]} 7. Qd2 {[%emt 0:02:20]} Nf6 {[%emt 0:00:48]} 8. f3 {[%emt 0:00:49]} Be7 {[%emt 0:03:54]} 9. O-O-O {[%emt 0:00:10]} O-O {[%emt 0:00:47]} 10. g4 {[%emt 0:00:10]} Nxd4 {[%emt 0:01:18]} 11. Qxd4 {[%emt 0:05:03]} b5 {[%emt 0:06:58]} 12. g5 {[%emt 0:10:29]} Nh5 {[%emt 0:03:05]} 13. Ne2 {[%emt 0:04:55]} e5 {[%emt 0:13:30]} 14. Qd2 {[%emt 0:00:38]} Rd8 {[%emt 0:02:33]} 15. Ng3 {[%emt 0:01:50]} Nf4 {[%emt 0:01:52]} 16. Nf5 {[%emt 0:08:23]} d5 {[%emt 0:18:33]} 17. Nxe7+ {[%emt 0:03:43]} Qxe7 {[%emt 0:00:09]} 18. Bxf4 {[%emt 0:00:16]} exf4 {[%emt 0:00:10]} 19. Qxf4 {[%emt 0:00:07]} dxe4 {[%emt 0:00:41]} 20. Rxd8+ {[%emt 0:00:18]} Qxd8 {[%emt 0:00:09]} 21. Qxe4 {[%emt 0:11:18]} Be6 {[%emt 0:00:16]} 22. Bd3 {[%emt 0:00:38]} g6 {[%emt 0:00:36]} 23. Kb1 {[%emt 0:09:26]} Rc8 {[%emt 0:04:09]} 24. h4 {[%emt 0:02:04]} Qa5 {[%emt 0:07:19]} 25. a3 {[%emt 0:03:11]} Re8 {[%emt 0:02:24]} 26. Qc6 {[%emt 0:05:03]} Rd8 {[%emt 0:00:31]} 27. Qc3 {[%emt 0:04:57]} Qxc3 {[%emt 0:01:41]} 28. bxc3 {[%emt 0:00:05]} Bc4 {[%emt 0:03:59]} 29. Bxc4 {[%emt 0:03:58]} bxc4 {[%emt 0:00:07]} 30. Re1 {[%emt 0:00:11]} Rd5 {[%emt 0:03:15]} 31. Re4 {[%emt 0:00:32]} Rc5 {[%emt 0:04:47]} 32. f4 {[%emt 0:03:21]} h5 {[%emt 0:00:18]} 33. a4 {[%emt 0:00:33]} Kf8 {[%emt 0:00:27]} 34. Kc1 {[%emt 0:00:23]} Kg7 {[%emt 0:01:05]} 35. Kd2 {[%emt 0:00:07]} Kf8 {[%emt 0:00:04]} 36. Ke3 {[%emt 0:00:24]} Kg7 {[%emt 0:00:09]} 37. Re5 {[%emt 0:00:27]} Rc7 {[%emt 0:00:27]} 38. Kd4 {[%emt 0:00:17]} Kf8 {[%emt 0:01:23]} 39. f5 {[%emt 0:00:41]} gxf5 {[%emt 0:00:31]} 40. Rxf5 {[%emt 0:00:08]} Kg7 {[%emt 0:00:23]} 41. Rf6 {[%emt 0:30:21]} Rd7+ {[%emt 0:11:48]} 42. Kxc4 {[%emt 0:00:00]} Rd2 {[%emt 0:00:09]} 43. Kb3 {[%emt 0:00:00]} Rg2 {[%emt 0:01:31]} 44. c4 {[%emt 0:00:00]} Rg4 {[%emt 0:00:36]} 45. c5 {[%emt 0:00:00]} Rxh4 {[%emt 0:00:26]} 46. c6 {[%emt 0:00:00]} Re4 {[%emt 0:00:08]} 47. c7 {[%emt 0:00:00]} Re8 {[%emt 0:00:25]} 48. Rc6 {[%emt 0:00:00]} Rc8 {[%emt 0:00:13]} 49. Kb4 {[%emt 0:00:00]} h4 {[%emt 0:00:13]} 50. Ka5 {[%emt 0:00:00]} h3 {[%emt 0:00:15]} 51. Kb6 {[%emt 0:00:00]} Rh8 {[%emt 0:00:57]} 52. Rh6 {[%emt 0:00:00]} 1-0

[Event "Norwegian Team Championship 2019"]
[Site "Drammen"]
[Date "2019.06.02"]
[Round "5.6"]
[White "Risting, Eivind Olav"]
[Black "Ingebretsen, Jens E"]
[Result "1-0"]
[ECO "E51"]
[WhiteElo "2357"]
[BlackElo "2243"]
[Annotator "ChessBase"]
[PlyCount "55"]
[EventDate "2019.05.30"]
[EventType "swiss"]
[EventCountry "NOR"]
[SourceTitle "playchess.com"]
[Source "ChessBase"]
[SourceQuality "1"]
[TimeControl "40/5400:1800"]

1. d4 {[%emt 0:00:03]} Nf6 {[%emt 0:04:21]} 2. c4 {[%emt 0:00:12]} e6 {[%emt 0:00:08]} 3. Nc3 {[%emt 0:00:32]} Bb4 {[%emt 0:00:11]} 4. e3 {[%emt 0:00:05]} O-O {[%emt 0:00:09]} 5. Nf3 {[%emt 0:00:34]} c5 {[%emt 0:00:16]} 6. a3 {[%emt 0:06:26]} Bxc3+ {[%emt 0:00:09]} 7. bxc3 {[%emt 0:00:01]} d5 {[%emt 0:00:10]} 8. cxd5 {[%emt 0:00:30]} exd5 {[%emt 0:00:21]} 9. Bd3 {[%emt 0:01:52]} Nc6 {[%emt 0:01:21]} 10. O-O {[%emt 0:05:30]} c4 {[%emt 0:02:02]} 11. Bc2 {[%emt 0:03:33]} Bg4 {[%emt 0:00:29]} 12. Qe1 {[%emt 0:00:55]} Re8 {[%emt 0:05:16]} 13. Rb1 {[%emt 0:02:18]} Bxf3 {[%emt 0:08:51]} 14. gxf3 {[%emt 0:00:05]} Qd7 {[%emt 0:00:06]} 15. Kh1 {[%emt 0:05:34]} Qh3 {[%emt 0:01:32]} 16. Qd1 {[%emt 0:02:47]} Re7 {[%emt 0:16:16]} 17. Rg1 {[%emt 0:02:46]} Nh5 {[%emt 0:01:42]} 18. Rb5 {[%emt 0:06:40]} Rd8 {[%emt 0:05:15]} 19. e4 {[%emt 0:13:20]} dxe4 {[%emt 0:09:45]} 20. fxe4 {[%emt 0:00:49]} Ne5 {[%emt 0:00:38]} 21. Qe2 {[%emt 0:09:32]} Nf3 {[%emt 0:01:46]} 22. Rg2 {[%emt 0:01:21]} a6 {[%emt 0:03:47]} 23. Rxh5 {[%emt 0:01:16]} Qxh5 {[%emt 0:00:32]} 24. Bd1 {[%emt 0:00:13]} Qh4 {[%emt 0:01:20]} 25. Qxf3 {[%emt 0:00:19]} Rxe4 {[%emt 0:00:09]} 26. Be3 {[%emt 0:01:18]} Rde8 {[%emt 0:01:50]} 27. Be2 {[%emt 0:05:24]} b5 {[%emt 0:01:22]} 28. Bg5 {[%emt 0:01:35]} 1-0

[Event "Norwegian Team Championship 2019"]
[Site "Drammen"]
[Date "2019.06.02"]
[Round "5.7"]
[White "Dolzhikova, Olga"]
[Black "Gandrud, Vegar Koi"]
[Result "0-1"]
[ECO "B14"]
[WhiteElo "2210"]
[BlackElo "2325"]
[Annotator "ChessBase"]
[PlyCount "132"]
[EventDate "2019.05.30"]
[EventType "swiss"]
[EventCountry "NOR"]
[SourceTitle "playchess.com"]
[Source "ChessBase"]
[SourceQuality "1"]
[TimeControl "40/5400:1800"]

1. e4 {[%emt 0:00:02]} c5 {[%emt 0:00:05]} 2. c3 {[%emt 0:00:04]} g6 {[%emt 0:00:22]} 3. d4 {[%emt 0:00:47]} cxd4 {[%emt 0:00:12]} 4. cxd4 {[%emt 0:01:06]} d5 {[%emt 0:00:08]} 5. exd5 {[%emt 0:00:18]} Nf6 {[%emt 0:00:10]} 6. Nc3 {[%emt 0:00:25]} Bg7 {[%emt 0:00:26]} 7. Qb3 {[%emt 0:02:12]} O-O {[%emt 0:01:07]} 8. Nf3 {[%emt 0:01:25]} Nbd7 {[%emt 0:16:17]} 9. d6 {[%emt 0:00:37]} exd6 {[%emt 0:03:20]} 10. Be2 {[%emt 0:00:11]} Nb6 {[%emt 0:00:49]} 11. O-O {[%emt 0:09:38]} Be6 {[%emt 0:04:39]} 12. Qd1 {[%emt 0:00:17]} Rc8 {[%emt 0:03:34]} 13. Bf4 {[%emt 0:04:27]} Nfd5 {[%emt 0:01:37]} 14. Nxd5 {[%emt 0:04:44]} Nxd5 {[%emt 0:00:21]} 15. Bg3 {[%emt 0:01:00]} Qb6 {[%emt 0:09:55]} 16. Qd2 {[%emt 0:09:18]} Nb4 {[%emt 0:02:33]} 17. a3 {[%emt 0:10:43]} Nc2 {[%emt 0:00:37]} 18. Rad1 {[%emt 0:05:36]} Bd5 {[%emt 0:01:07]} 19. Rc1 {[%emt 0:05:20]} Bxf3 {[%emt 0:02:39]} 20. Rxc2 {[%emt 0:04:00]} Bxe2 {[%emt 0:04:05]} 21. Qxe2 {[%emt 0:01:24]} Rxc2 {[%emt 0:00:12]} 22. Qxc2 {[%emt 0:00:05]} Bxd4 {[%emt 0:00:14]} 23. b4 {[%emt 0:01:30]} Be5 {[%emt 0:04:15]} 24. Rc1 {[%emt 0:02:40]} Re8 {[%emt 0:05:13]} 25. Bxe5 {[%emt 0:11:47]} dxe5 {[%emt 0:03:44]} 26. Qe4 {[%emt 0:01:54]} Re7 {[%emt 0:02:20]} 27. h3 {[%emt 0:00:33]} Qe6 {[%emt 0:00:52]} 28. Rd1 {[%emt 0:00:57]} f5 {[%emt 0:01:51]} 29. Qd3 {[%emt 0:00:30]} b6 {[%emt 0:03:37]} 30. Qd8+ {[%emt 0:00:13]} Kg7 {[%emt 0:00:46]} 31. Rd6 {[%emt 0:00:12]} Qf7 {[%emt 0:00:22]} 32. Qc8 {[%emt 0:01:21]} Rc7 {[%emt 0:01:11]} 33. Qd8 {[%emt 0:00:25]} Qe7 {[%emt 0:01:06]} 34. Qxe7+ {[%emt 0:01:34]} Rxe7 {[%emt 0:00:01]} 35. a4 {[%emt 0:00:26]} Rc7 {[%emt 0:00:45]} 36. a5 {[%emt 0:00:17]} bxa5 {[%emt 0:00:04]} 37. bxa5 {[%emt 0:00:03]} Kf7 {[%emt 0:00:19]} 38. Rd8 {[%emt 0:00:57]} Ke7 {[%emt 0:00:18]} 39. Rb8 {[%emt 0:00:33]} Kd6 {[%emt 0:00:38]} 40. Kf1 {[%emt 0:00:17]} Rc5 {[%emt 0:02:25]} 41. Rb7 {[%emt 0:03:25]} Rxa5 {[%emt 0:00:34]} 42. Rxh7 {[%emt 0:00:06]} Ke6 {[%emt 0:03:20]} 43. g3 {[%emt 0:04:35]} Ra2 {[%emt 0:00:42]} 44. h4 {[%emt 0:00:36]} Kf6 {[%emt 0:03:14]} 45. Rc7 {[%emt 0:05:03]} a5 {[%emt 0:02:04]} 46. Ra7 {[%emt 0:00:10]} e4 {[%emt 0:01:12]} 47. Kg1 {[%emt 0:00:33]} a4 {[%emt 0:00:28]} 48. Kf1 {[%emt 0:00:13]} a3 {[%emt 0:00:13]} 49. Ra6+ {[%emt 0:01:29]} Kg7 {[%emt 0:00:15]} 50. Ra7+ {[%emt 0:00:28]} Kh6 {[%emt 0:00:22]} 51. Kg1 {[%emt 0:03:08]} Kh5 {[%emt 0:01:20]} 52. Ra6 {[%emt 0:05:14]} g5 {[%emt 0:01:38]} 53. hxg5 {[%emt 0:00:25]} Kxg5 {[%emt 0:00:04]} 54. Ra5 {[%emt 0:01:50]} Kg4 {[%emt 0:00:18]} 55. Kf1 {[%emt 0:00:58]} f4 {[%emt 0:00:18]} 56. gxf4 {[%emt 0:00:04]} Kf3 {[%emt 0:00:59]} 57. Kg1 {[%emt 0:00:44]} Ra1+ {[%emt 0:01:36]} 58. Kh2 {[%emt 0:00:02]} Kxf2 {[%emt 0:00:09]} 59. f5 {[%emt 0:00:40]} e3 {[%emt 0:00:47]} 60. f6 {[%emt 0:00:01]} Ke2 {[%emt 0:09:10]} 61. f7 {[%emt 0:00:04]} Rf1 {[%emt 0:00:17]} 62. Rxa3 {[%emt 0:00:05]} Rxf7 {[%emt 0:00:08]} 63. Kg3 {[%emt 0:00:03]} Rg7+ {[%emt 0:00:28]} 64. Kf4 {[%emt 0:00:00]} Kf2 {[%emt 0:00:12]} 65. Ke4 {[%emt 0:00:12]} Re7+ {[%emt 0:00:25]} 66. Kd3 {[%emt 0:00:03]} e2 {[%emt 0:00:08]} 0-1

[Event "Norwegian Team Championship 2019"]
[Site "Drammen"]
[Date "2019.06.02"]
[Round "5.8"]
[White "Storme, Isak"]
[Black "Svensen, Tarjei Joten"]
[Result "1-0"]
[ECO "C06"]
[WhiteElo "2309"]
[BlackElo "2056"]
[Annotator "ChessBase"]
[PlyCount "89"]
[EventDate "2019.05.30"]
[EventType "swiss"]
[EventCountry "NOR"]
[SourceTitle "playchess.com"]
[Source "ChessBase"]
[SourceQuality "1"]
[TimeControl "40/5400:1800"]

1. e4 {[%emt 0:00:03]} e6 {[%emt 0:00:04]} 2. d4 {[%emt 0:00:28]} d5 {[%emt 0:00:05]} 3. Nd2 {[%emt 0:00:08]} Nf6 {[%emt 0:00:08]} 4. e5 {[%emt 0:00:14]} Nfd7 {[%emt 0:00:04]} 5. Bd3 {[%emt 0:00:07]} c5 {[%emt 0:00:05]} 6. c3 {[%emt 0:00:05]} Nc6 {[%emt 0:00:08]} 7. Ne2 {[%emt 0:00:06]} cxd4 {[%emt 0:00:17]} 8. cxd4 {[%emt 0:00:06]} f6 {[%emt 0:00:07]} 9. exf6 {[%emt 0:00:07]} Nxf6 {[%emt 0:00:51]} 10. O-O {[%emt 0:00:14]} Bd6 {[%emt 0:00:12]} 11. Nf3 {[%emt 0:00:08]} O-O {[%emt 0:00:52]} 12. Bf4 {[%emt 0:00:08]} Nh5 {[%emt 0:04:40]} 13. Bxd6 {[%emt 0:01:15]} Qxd6 {[%emt 0:00:44]} 14. Qd2 {[%emt 0:13:26]} Nf4 {[%emt 0:27:01]} 15. Nxf4 {[%emt 0:00:32]} Qxf4 {[%emt 0:00:29]} 16. Qxf4 {[%emt 0:00:39]} Rxf4 {[%emt 0:00:02]} 17. Rfd1 {[%emt 0:02:50]} Bd7 {[%emt 0:00:38]} 18. Bb5 {[%emt 0:07:00]} Raf8 {[%emt 0:03:15]} 19. Bxc6 {[%emt 0:00:56]} Bxc6 {[%emt 0:00:31]} 20. Re1 {[%emt 0:04:51]} R8f6 {[%emt 0:02:43]} 21. Rac1 {[%emt 0:03:30]} h6 {[%emt 0:03:10]} 22. Re2 {[%emt 0:01:11]} Rg4 {[%emt 0:14:10]} 23. Rc3 {[%emt 0:01:18]} Bb5 {[%emt 0:09:03]} 24. Rd2 {[%emt 0:00:24]} Re4 {[%emt 0:01:13]} 25. h3 {[%emt 0:02:50]} Re2 {[%emt 0:04:30]} 26. Rxe2 {[%emt 0:01:11]} Bxe2 {[%emt 0:00:02]} 27. Ne5 {[%emt 0:00:09]} Rf4 {[%emt 0:00:59]} 28. Rc8+ {[%emt 0:00:17]} Rf8 {[%emt 0:02:49]} 29. Rc7 {[%emt 0:02:15]} b5 {[%emt 0:03:03]} 30. g3 {[%emt 0:00:39]} a5 {[%emt 0:01:04]} 31. Kg2 {[%emt 0:04:01]} a4 {[%emt 0:00:00]} 32. a3 {[%emt 0:05:21]} Rb8 {[%emt 0:01:20]} 33. Nd7 {[%emt 0:00:36]} Rd8 {[%emt 0:00:32]} 34. g4 {[%emt 0:01:23]} Re8 {[%emt 0:02:29]} 35. Kg3 {[%emt 0:00:37]} Bd3 {[%emt 0:00:45]} 36. Kf4 {[%emt 0:00:59]} Bf1 {[%emt 0:00:56]} 37. h4 {[%emt 0:00:18]} Be2 {[%emt 0:00:11]} 38. g5 {[%emt 0:11:41]} hxg5+ {[%emt 0:00:18]} 39. hxg5 {[%emt 0:00:07]} Bd3 {[%emt 0:00:10]} 40. Ke5 {[%emt 0:01:37]} Bf5 {[%emt 0:00:14]} 41. f4 {[%emt 0:33:25]} Rd8 {[%emt 0:01:42]} 42. Rb7 {[%emt 0:00:00]} Bd3 {[%emt 0:06:04]} 43. Nc5 {[%emt 0:00:00]} Bf5 {[%emt 0:00:52]} 44. Nxe6 {[%emt 0:00:00]} Bxe6 {[%emt 0:00:26]} 45. Kxe6 {[%emt 0:00:00]} 1-0

[Event "Norwegian Team Championship 2019"]
[Site "Drammen"]
[Date "2019.06.02"]
[Round "5.9"]
[White "Kaasen, Tor Fredrik"]
[Black "Elsness, Frode"]
[Result "1-0"]
[ECO "D34"]
[WhiteElo "2398"]
[BlackElo "2440"]
[Annotator "ChessBase"]
[PlyCount "81"]
[EventDate "2019.05.30"]
[EventType "swiss"]
[EventCountry "NOR"]
[SourceTitle "playchess.com"]
[Source "ChessBase"]
[SourceQuality "1"]
[TimeControl "40/5400:1800"]

1. d4 {[%emt 0:00:31]} d5 {[%emt 0:03:58]} 2. c4 {[%emt 0:00:46]} e6 {[%emt 0:00:03]} 3. Nf3 {[%emt 0:00:18]} c5 {[%emt 0:00:54]} 4. cxd5 {[%emt 0:01:00]} exd5 {[%emt 0:00:01]} 5. Nc3 {[%emt 0:00:36]} Nc6 {[%emt 0:00:04]} 6. g3 {[%emt 0:01:18]} Nf6 {[%emt 0:00:06]} 7. Bg2 {[%emt 0:00:11]} Be7 {[%emt 0:00:05]} 8. O-O {[%emt 0:00:19]} O-O {[%emt 0:00:04]} 9. dxc5 {[%emt 0:00:37]} Bxc5 {[%emt 0:00:26]} 10. Na4 {[%emt 0:01:10]} Be7 {[%emt 0:00:19]} 11. b3 {[%emt 0:00:50]} Bg4 {[%emt 0:09:51]} 12. Bb2 {[%emt 0:02:13]} Qd7 {[%emt 0:02:30]} 13. Rc1 {[%emt 0:01:24]} Rad8 {[%emt 0:04:25]} 14. Nc5 {[%emt 0:04:25]} Bxc5 {[%emt 0:00:24]} 15. Rxc5 {[%emt 0:00:05]} Ne4 {[%emt 0:03:18]} 16. Rxc6 {[%emt 0:06:42]} Qxc6 {[%emt 0:05:39]} 17. Ne5 {[%emt 0:00:27]} Qc8 {[%emt 0:01:20]} 18. Nxg4 {[%emt 0:01:14]} Qxg4 {[%emt 0:00:05]} 19. f3 {[%emt 0:00:05]} Qg5 {[%emt 0:00:35]} 20. Bc1 {[%emt 0:06:17]} Qe7 {[%emt 0:00:19]} 21. fxe4 {[%emt 0:00:07]} Qc5+ {[%emt 0:00:39]} 22. e3 {[%emt 0:00:27]} dxe4 {[%emt 0:00:09]} 23. Qe2 {[%emt 0:00:40]} f5 {[%emt 0:02:32]} 24. Bb2 {[%emt 0:02:18]} Rd3 {[%emt 0:22:03]} 25. Bd4 {[%emt 0:01:15]} Qb4 {[%emt 0:06:00]} 26. Qc2 {[%emt 0:03:31]} Rd2 {[%emt 0:02:58]} 27. Qc1 {[%emt 0:06:39]} Rxd4 {[%emt 0:04:25]} 28. exd4 {[%emt 0:00:06]} Qxd4+ {[%emt 0:00:02]} 29. Kh1 {[%emt 0:00:11]} h5 {[%emt 0:03:03]} 30. Qg5 {[%emt 0:02:05]} e3 {[%emt 0:01:52]} 31. Re1 {[%emt 0:01:22]} Re8 {[%emt 0:01:09]} 32. Qxf5 {[%emt 0:00:36]} Re5 {[%emt 0:00:31]} 33. Qc8+ {[%emt 0:00:32]} Kh7 {[%emt 0:00:09]} 34. Qc2+ {[%emt 0:00:08]} g6 {[%emt 0:01:00]} 35. Qe2 {[%emt 0:00:51]} b6 {[%emt 0:01:04]} 36. Bf3 {[%emt 0:00:10]} Kh6 {[%emt 0:01:07]} 37. Qc4 {[%emt 0:02:29]} Qd6 {[%emt 0:01:22]} 38. Qf4+ {[%emt 0:03:06]} g5 {[%emt 0:00:16]} 39. Qf7 {[%emt 0:00:32]} g4 {[%emt 0:00:24]} 40. Qf4+ {[%emt 0:00:11]} Kg7 {[%emt 0:00:09]} 41. Rxe3 {[%emt 0:32:30]} 1-0